lending/lending_fUSD_20260312
["ID","MTS","AMOUNT","RATE_DAILY","PERIOD"]
[408247538,1773310243615,-500.0,0.00019999,2]
[408247539,1773310243624,-530.36462586,0.00019999,2]
[408247540,1773310243633,-615.85034056,0.00019999,2]
[408247541,1773310243643,-500.0,0.00019999,2]
[408247542,1773310243652,-500.0,0.00019999,2]
[408247543,1773310243661,-500.0,0.00019999,2]
[408247544,1773310243670,-500.0,0.00019999,2]
[408247545,1773310243679,-500.0,0.00019999,2]
[408247546,1773310243688,-500.0,0.00019999,2]
[408247547,1773310243698,-500.0,0.00019999,2]
[408247548,1773310243707,-500.0,0.00019999,2]
[408247549,1773310243716,-500.0,0.00019999,2]
[408247550,1773310243725,-500.0,0.00019999,2]
[408247551,1773310243733,-500.0,0.00019999,2]
[408247552,1773310243742,-500.0,0.00019999,2]
[408247553,1773310243751,-500.0,0.00019999,2]
[408247554,1773310243760,-500.0,0.00019999,2]
[408247555,1773310243769,-500.0,0.00019999,2]
[408247556,1773310243778,-500.0,0.00019999,2]
[408247557,1773310243786,-500.0,0.00019999,2]
[408247558,1773310243795,-500.0,0.00019999,2]
[408247559,1773310243804,-500.0,0.00019999,2]
[408247560,1773310243812,-500.0,0.00019999,2]
[408247561,1773310243821,-500.0,0.00019999,2]
[408247562,1773310243830,-500.0,0.00019999,2]
[408247563,1773310243839,-500.0,0.00019999,2]
[408247564,1773310243847,-500.0,0.00019999,2]
[408247565,1773310243856,-500.0,0.00019999,2]
[408247566,1773310243865,-500.0,0.00019999,2]
[408247567,1773310243875,-500.0,0.00019999,2]
[408247568,1773310243884,-500.0,0.00019999,2]
[408247569,1773310243893,-342.12,0.00019999,2]
[408247570,1773310243901,-500.0,0.00019999,2]
[408247571,1773310243910,-290.93147481,0.00019999,2]
[408247572,1773310243919,-184.26272872,0.00019999,2]
[408247573,1773310243928,-592.28925632,0.00019999,2]
[408247574,1773310243937,-556.0,0.0002,2]
[408247575,1773310243946,-444.0,0.0002,2]
[408247576,1773310243955,-620.03873451,0.0002,2]
[408247577,1773310243963,-26362.56286554,0.0002,2]
[408247579,1773310245321,-151.0,0.00019178,2]
[408247580,1773310245333,-265.29247334,0.0001987,2]
[408247581,1773310245342,-4002.58949663,0.0002,2]
[408247582,1773310245353,-28028.11980498,0.0002,2]
[408247583,1773310245364,-720.69661148,0.0002,2]
[408247584,1773310245379,-159473.37932789,0.0002,2]
[408247587,1773310247537,-2070.80000019,0.0002,2]
[408247588,1773310247548,-800.91481846,0.0002,2]
[408247589,1773310247559,-365060.04766401,0.0002,2]
[408247590,1773310247571,-78602.54842374,0.0002,2]
[408247591,1773310247590,-1180.128,0.0002,2]
[408247592,1773310263286,13600.0,0.0002,120]
[408247596,1773310624986,250.0,0.00015,2]
[408247597,1773310653072,-507.0,0.00017,2]
[408247598,1773310653097,-300.0,0.00017,2]
[408247599,1773310664141,205.555436,0.00017935,2]
[408247600,1773310665628,-1200.0,0.00018025,2]
[408247601,1773310665652,-300.0,0.00018025,2]
[408247602,1773310665679,-500.0,0.00018026,2]
[408247603,1773310665703,-500.0,0.00018026,2]
[408247604,1773310665728,-500.0,0.00018026,2]
[408247605,1773310665751,-174.04429877,0.00018026,2]
[408247606,1773310665780,-500.0,0.00018026,2]
[408247607,1773310665805,-500.0,0.00018026,2]
[408247608,1773310665829,-500.0,0.00018026,2]
[408247609,1773310665854,-500.0,0.00018026,2]
[408247610,1773310665879,-500.0,0.00018026,2]
[408247611,1773310665904,-273.91501688,0.00018026,2]
[408247612,1773310665926,-500.0,0.00018026,2]
[408247613,1773310665951,-500.0,0.00018026,2]
[408247614,1773310665977,-500.0,0.00018026,2]
[408247615,1773310666002,-500.0,0.00018026,2]
[408247616,1773310666028,-500.0,0.00018026,2]
[408247617,1773310666053,-500.0,0.00018026,2]
[408247618,1773310666077,-500.0,0.00018026,2]
[408247619,1773310666101,-500.0,0.00018026,2]
[408247620,1773310666126,-500.0,0.00018026,2]
[408247621,1773310666150,-500.0,0.00018026,2]
[408247622,1773310666176,-500.0,0.00018026,2]
[408247623,1773310666202,-500.0,0.00018026,2]
[408247624,1773310666228,-500.0,0.00018026,2]
[408247625,1773310666256,-500.0,0.00018026,2]
[408247626,1773310666287,-500.0,0.00018026,2]
[408247627,1773310666313,-500.0,0.00018026,2]
[408247628,1773310666342,-139.48524835,0.00018026,2]
[408247629,1773310704351,4563.17,0.000165,2]
[408247632,1773311001182,-508.0,0.00017,2]
[408247633,1773311001208,-294.0,0.00017,2]
[408247634,1773311001233,-1200.0,0.00017926,2]
[408247635,1773311001259,-2500.0,0.00017926,2]
[408247636,1773311001285,-12656.7484,0.00017927,2]
[408247637,1773311001310,-6841.2516,0.00017933,2]
[408247640,1773311096286,432.0,0.000149,5]
[408247641,1773311392698,1321.91,0.00015138,2]
[408247645,1773311431627,-508.89636,0.00017,2]
[408247646,1773311431637,-294.0,0.00017,2]
[408247647,1773311431647,-2000.0,0.00017744,2]
[408247648,1773311431656,-288.758,0.0001789,5]
[408247649,1773311431666,-261.16889186,0.00017912,2]
[408247650,1773311431675,-479.2671,0.00017926,2]
[408247651,1773311431684,-2500.0,0.00017929,2]
[408247652,1773311431694,-249.47621933,0.00017987,2]
[408247654,1773311431703,-1200.0,0.00018025,2]
[408247655,1773311431713,-1000.0,0.00018026,2]
[408247656,1773311431723,-500.0,0.00018026,2]
[408247657,1773311431732,-500.0,0.00018026,2]
[408247658,1773311431742,-500.0,0.00018026,2]
[408247659,1773311431751,-500.0,0.00018026,2]
[408247661,1773311431762,-500.0,0.00018026,2]
[408247664,1773311431771,-500.0,0.00018026,2]
[408247665,1773311431781,-500.0,0.00018026,2]
[408247668,1773311431792,-500.0,0.00018026,2]
[408247669,1773311431802,-301.85477817,0.00018026,2]
[408247670,1773311431811,-500.0,0.00018026,2]
[408247671,1773311431821,-500.0,0.00018026,2]
[408247672,1773311431831,-500.0,0.00018026,2]
[408247673,1773311432055,-500.0,0.00018026,2]
[408247674,1773311432066,-500.0,0.00018026,2]
[408247675,1773311432075,-500.0,0.00018026,2]
[408247676,1773311432084,-500.0,0.00018026,2]
[408247677,1773311432093,-500.0,0.00018026,2]
[408247678,1773311432102,-500.0,0.00018026,2]
[408247679,1773311432112,-500.0,0.00018026,2]
[408247680,1773311432121,-500.0,0.00018026,2]
[408247681,1773311432130,-500.0,0.00018026,2]
[408247682,1773311432140,-500.0,0.00018026,2]
[408247683,1773311432158,-500.0,0.00018026,2]
[408247684,1773311432169,-500.0,0.00018026,2]
[408247685,1773311432178,-500.0,0.00018026,2]
[408247686,1773311432188,-500.0,0.00018026,2]
[408247687,1773311432198,-500.0,0.00018026,2]
[408247688,1773311432208,-500.0,0.00018026,2]
[408247689,1773311432219,-500.0,0.00018026,2]
[408247690,1773311432229,-500.0,0.00018026,2]
[408247691,1773311432238,-500.0,0.00018026,2]
[408247692,1773311432248,-500.0,0.00018026,2]
[408247693,1773311432258,-500.0,0.00018026,2]
[408247694,1773311432269,-500.0,0.00018026,2]
[408247695,1773311432280,-500.0,0.00018026,2]
[408247696,1773311432290,-500.0,0.00018026,2]
[408247697,1773311432301,-500.0,0.00018026,2]
[408247698,1773311432312,-500.0,0.00018026,2]
[408247699,1773311432323,-500.0,0.00018026,2]
[408247700,1773311432334,-500.0,0.00018026,2]
[408247701,1773311432344,-500.0,0.00018026,2]
[408247702,1773311432355,-500.0,0.00018026,2]
[408247703,1773311432365,-500.0,0.00018026,2]
[408247704,1773311432375,-194.86860888,0.00018026,2]
[408247705,1773311432388,-500.0,0.00018026,2]
[408247706,1773311432399,-500.0,0.00018026,2]
[408247707,1773311432409,-500.0,0.00018026,2]
[408247708,1773311432418,-500.0,0.00018026,2]
[408247709,1773311432429,-500.0,0.00018026,2]
[408247710,1773311432438,-500.0,0.00018026,2]
[408247711,1773311432448,-500.0,0.00018026,2]
[408247712,1773311432458,-500.0,0.00018026,2]
[408247713,1773311432468,-499.99999999,0.00018026,2]
[408247714,1773311432481,-500.0,0.00018026,2]
[408247715,1773311432491,-500.0,0.00018026,2]
[408247716,1773311432501,-509.55308461,0.00018026,2]
[408247717,1773311432511,-500.0,0.00018026,2]
[408247718,1773311432523,-514.94724986,0.00018026,2]
[408247719,1773311432534,-500.0,0.00018026,2]
[408247720,1773311432548,-506.63695301,0.00018026,2]
[408247721,1773311432558,-500.0,0.00018026,2]
[408247722,1773311432568,-514.33858661,0.00018026,2]
[408247723,1773311432578,-747.57,0.00018026,2]
[408247724,1773311432588,-463.4000001,0.00018026,2]
[408247725,1773311432597,-500.0,0.00018026,2]
[408247726,1773311432607,-75.395097,0.00018026,2]
[408247727,1773311432626,-424.604903,0.00018026,2]
[408247728,1773311432636,-500.0,0.00018026,2]
[408247729,1773311432646,-4467.82132307,0.00018027,2]
[408247730,1773311432658,-9082.31868426,0.00018027,2]
[408247731,1773311432670,-265.84703492,0.00018027,2]
[408247732,1773311432681,-64297.44392753,0.00018027,2]
[408247733,1773311432693,-820.81019304,0.00018027,2]
[408247734,1773311432705,-474.202935,0.00018027,2]
[408247735,1773311438249,-833.66172791,0.00018027,2]
[408247736,1773311438261,-1070.36465114,0.00018027,2]
[408247758,1773311438757,-925.57799379,0.00018027,2]
[408247762,1773311439790,-255.71809916,0.00018027,2]
[408247763,1773311442604,268.23,0.000165,2]
[408247765,1773311444837,-262.632924,0.00018027,2]
[408247766,1773311444945,-13671.872595,0.00018027,2]
[408247767,1773311445162,-396.529999,0.00018027,2]
[408247774,1773311445436,-1241.51899572,0.00018027,2]
[408247775,1773311445447,-605.31448318,0.00018027,2]
[408247777,1773311445557,-9253.20065759,0.00018027,2]
[408247778,1773311445766,-71497.73370247,0.00018027,2]
[408247779,1773311445777,-2069.79999984,0.00018027,2]
[408247780,1773311445820,-12243.25995398,0.00018027,2]
[408247784,1773311536284,500.0,0.00015,30]
[408247785,1773311536821,500.0,0.00015,30]
[408247786,1773311536848,786.96900156,0.00015,30]
[408247787,1773311536901,500.0,0.00015,30]
[408247788,1773311537278,500.0,0.00015,30]
[408247789,1773311537412,500.0,0.00015,30]
[408247790,1773311537780,500.0,0.00015,30]
[408247791,1773311537891,500.0,0.00015,30]
[408247792,1773311538288,500.0,0.00015,30]
[408247793,1773311538363,500.0,0.00015,30]
[408247794,1773311538809,500.0,0.00015,30]
[408247795,1773311538835,500.0,0.00015,30]
[408247796,1773311539284,500.0,0.00015,30]
[408247797,1773311539311,500.0,0.00015,30]
[408247798,1773311539769,500.0,0.00015,30]
[408247799,1773311539800,500.0,0.00015,30]
[408247800,1773311540230,500.0,0.000115,2]
[408247801,1773311540258,500.0,0.00015,30]
[408247802,1773311540737,500.0,0.000115,2]
[408247803,1773311540765,213.04099844,0.000115,2]
[408247804,1773311540787,286.95900156,0.000115,2]
[408247805,1773311541232,500.0,0.000115,2]
[408247806,1773311541262,500.0,0.000115,2]
[408247807,1773311541716,500.0,0.000115,2]
[408247808,1773311541746,500.0,0.000115,2]
[408247809,1773311542147,500.0,0.00015,30]
[408247810,1773311542212,500.0,0.000115,2]
[408247811,1773311542615,500.0,0.00015,30]
[408247812,1773311542694,500.0,0.000115,2]
[408247813,1773311542721,518.85269594,0.000115,2]
[408247814,1773311543102,500.0,0.00015,30]
[408247815,1773311543207,500.0,0.000115,2]
[408247816,1773311543622,500.0,0.00015,30]
[408247817,1773311543720,500.0,0.000115,2]
[408247818,1773311543782,500.0,0.00015,30]
[408247819,1773311544117,500.0,0.00015,30]
[408247820,1773311544197,973.11746355,0.000115,2]
[408247821,1773311544255,500.0,0.00015,30]
[408247822,1773311544715,500.0,0.00015,30]
[408247823,1773311544752,221.08083895,0.00015,30]
[408247824,1773311544780,278.91916105,0.00015,30]
[408247825,1773311545147,500.0,0.00015,30]
[408247826,1773311545295,500.0,0.00015,30]
[408247827,1773311545646,500.0,0.00015,30]
[408247828,1773311545777,500.0,0.00015,30]
[408247829,1773311546265,500.0,0.00015,30]
[408247830,1773311546305,500.0,0.000115,2]
[408247831,1773311546379,500.0,0.00015,30]
[408247832,1773311546459,500.0,0.00015,30]
[408247833,1773311546566,500.0,0.00015,30]
[408247834,1773311546919,500.0,0.000115,2]
[408247835,1773311546959,502.03896523,0.00015,30]
[408247836,1773311546998,500.0,0.00015,30]
[408247837,1773311547049,500.0,0.00015,30]
[408247838,1773311547087,600.80540709,0.000115,2]
[408247839,1773311547124,500.0,0.00015,30]
[408247840,1773311547179,918.72938126,0.00015,30]
[408247841,1773311547248,500.0,0.000115,2]
[408247842,1773311547287,500.0,0.000115,2]
[408247843,1773311547341,500.0,0.00015,30]
[408247844,1773311547406,500.0,0.00015,30]
[408247845,1773311547714,500.0,0.000115,2]
[408247846,1773311547754,500.0,0.000115,2]
[408247847,1773311547904,500.0,0.000115,2]
[408247848,1773311548230,500.0,0.000115,2]
[408247849,1773311548268,500.0,0.000115,2]
[408247850,1773311548337,500.0,0.00015,30]
[408247851,1773311548413,989.20351924,0.000115,2]
[408247852,1773311548668,500.0,0.000115,2]
[408247853,1773311548753,500.0,0.000115,2]
[408247854,1773311548817,500.0,0.000115,2]
[408247855,1773311549160,928.46774415,0.000115,2]
[408247856,1773311549244,500.0,0.000115,2]
[408247857,1773311549330,500.0,0.000115,2]
[408247858,1773311549796,649.41967209,0.000115,2]
[408247859,1773311550241,500.0,0.000115,2]
[408247860,1773311550284,500.0,0.00015,30]
[408247861,1773311550598,500.0,0.00015,30]
[408247862,1773311550644,500.35363394,0.00015,30]
[408247863,1773311550724,500.0,0.000115,2]
[408247864,1773311551089,837.33,0.000115,2]
[408247865,1773311551200,500.0,0.00015,30]
[408247866,1773311551232,500.0,0.00015,30]
[408247867,1773311551267,500.0,0.000115,2]
[408247868,1773311551658,500.0,0.00015,30]
[408247869,1773311551728,500.0,0.000115,2]
[408247870,1773311551761,535.91288932,0.000115,2]
[408247871,1773311552093,500.0,0.00015,30]
[408247872,1773311552594,500.0,0.00015,30]
[408247873,1773311553113,500.0,0.00015,30]
[408247874,1773311553578,500.0,0.000115,2]
[408247875,1773311554054,500.0,0.000115,2]
[408247876,1773311554519,500.0,0.000115,2]
[408247877,1773311554995,500.0,0.000115,2]
[408247878,1773311555466,500.0,0.000115,2]
[408247879,1773311778927,-157.0,0.000151,2]
[408247880,1773311778957,-221.0,0.000151,2]
[408247881,1773311807770,-150.0,0.00016061,2]
[408247882,1773311885082,153.0,0.000151,2]
[408247883,1773311947472,154.0,0.000151,2]
[408247885,1773312073631,-172.24095294,0.00016046,2]
[408247886,1773312073661,-284.0,0.00016046,2]
[408247887,1773312073695,-16.66,0.00016061,2]
[408247888,1773312073726,-600.0,0.00016082,2]
[408247889,1773312073758,-2854.20809412,0.00016103,2]
[408247890,1773312077808,-2145.79190588,0.00016103,2]
[408247891,1773312077851,-500.0,0.00016146,2]
[408247892,1773312077882,-1200.0,0.00016154,2]
[408247893,1773312077910,-600.0,0.00016155,2]
[408247894,1773312077939,-374.83328293,0.00016155,2]
[408247895,1773312080572,-358.75962238,0.00016155,2]
[408247896,1773312080603,-250.0,0.0001623,2]
[408247897,1773312080633,-300.0,0.00016233,2]
[408247898,1773312080664,-300.0,0.00016233,2]
[408247900,1773312246155,150.0,0.0001,2]
[408247902,1773312418403,1024.22,8.038e-05,2]
[408247903,1773312418620,1024.22,8.461e-05,2]
[408247904,1773312418823,1024.22,8.884e-05,2]
[408247905,1773312419023,1024.22,9.307e-05,2]
[408247906,1773312419215,1024.22,9.73e-05,2]
[408247907,1773312419419,1024.22,0.00010153,2]
[408247908,1773312419624,1024.22,0.00010576,2]
[408247909,1773312419844,1024.22,0.00010999,2]
[408247910,1773312420065,1024.22,0.00011422,2]
[408247911,1773312420665,632.03,0.00011845,2]
[408247912,1773312420688,392.19,0.00011845,2]
[408247913,1773312420716,1024.22,0.00012268,2]
[408247914,1773312421147,1024.22,0.00012691,2]
[408247915,1773312421370,1024.22,0.00013114,2]
[408247916,1773312421589,1024.22,0.00013537,2]
[408247917,1773312421799,1024.22,0.0001396,2]
[408247918,1773312422206,1024.22,0.00014383,2]
[408247919,1773312422619,1024.22,0.00014806,2]
[408247920,1773312428423,250.0,0.00015,2]
[408247921,1773312556156,-160.0,0.000151,2]
[408247922,1773312556177,-160.0,0.000151,2]
[408247923,1773312556197,-541.1375957,0.00015165,2]
[408247924,1773312556218,-300.0,0.00015165,2]
[408247925,1773312556237,-250.23982541,0.00015197,2]
[408247928,1773312631786,-161.0,0.000151,2]
[408247929,1773312631795,-349.76017459,0.00015197,2]
[408247930,1773312631805,-300.0,0.00015197,2]
[408247931,1773312631818,-276.0,0.00015197,2]
[408247932,1773312631832,-1024.22,0.00015229,2]
[408247933,1773312631843,-1024.22,0.00015652,2]
[408247934,1773312631854,-270.45837619,0.00015658,2]
[408247935,1773312631867,-119.38057582,0.0001566,2]
[408247936,1773312631893,-2472.87005918,0.0001566,2]
[408247937,1773312631905,-432.0417725,0.00015801,2]
[408247938,1773312631915,-575.64,0.00015817,2]
[408247939,1773312631924,-432.0417725,0.00015957,2]
[408247940,1773312631933,-1024.22,0.00016075,2]
[408247941,1773312631948,-1200.0,0.00016113,2]
[408247942,1773312631958,-432.0417725,0.00016114,2]
[408247944,1773312631967,-1932.72422197,0.00016131,2]
[408247945,1773312631976,-1741.0,0.00016227,2]
[408247946,1773312631985,-300.0,0.00016231,2]
[408247947,1773312631994,-300.0,0.00016231,2]
[408247948,1773312632003,-300.0,0.00016232,2]
[408247949,1773312632013,-5000.0,0.00016233,2]
[408247950,1773312632022,-318.00328773,0.00016243,2]
[408247951,1773312632032,-500.0,0.0001625,2]
[408247952,1773312632042,-296.0,0.0001626,2]
[408247953,1773312632051,-637.0,0.00016292,2]
[408247954,1773312632060,-477.0,0.00016356,2]
[408247956,1773312632070,-517.59280888,0.00016388,2]
[408247957,1773312632082,-250.0,0.0001639,2]
[408247958,1773312632091,-166.66,0.00016399,2]
[408247959,1773312632100,-866.0,0.00016404,2]
[408247960,1773312632109,-295.0,0.00016436,2]
[408247961,1773312632118,-281.78993835,0.00016467,2]
[408247962,1773312632127,-1991.0,0.00016469,2]
[408247963,1773312632137,-200.0,0.000165,2]
[408247964,1773312632146,-1136.0,0.00016502,2]
[408247965,1773312632157,-1500.0,0.00016506,2]
[408247966,1773312632166,-313.89207,0.00016512,7]
[408247967,1773312632175,-1613.0,0.00016535,2]
[408247968,1773312632184,-278.81,0.00016578,2]
[408247969,1773312632194,-550.0,0.00016589,2]
[408247970,1773312632203,-200.0,0.0001659,2]
[408247971,1773312632213,-500.0,0.0001659,2]
[408247972,1773312632223,-500.0,0.0001659,2]
[408247973,1773312632231,-500.0,0.0001659,2]
[408247974,1773312632240,-500.0,0.0001659,2]
[408247975,1773312632250,-500.0,0.0001659,2]
[408247976,1773312632259,-151.0,0.0001659,2]
[408247977,1773312632269,-151.0,0.0001659,2]
[408247978,1773312632278,-500.0,0.0001659,2]
[408247979,1773312632287,-151.0,0.0001659,2]
[408247980,1773312632296,-151.0,0.0001659,2]
[408247981,1773312632305,-500.0,0.0001659,2]
[408247982,1773312632315,-151.0,0.0001659,2]
[408247983,1773312632324,-151.0,0.0001659,2]
[408247984,1773312632334,-500.0,0.0001659,2]
[408247985,1773312632343,-151.0,0.0001659,2]
[408247986,1773312632352,-151.0,0.0001659,2]
[408247987,1773312632361,-151.0,0.0001659,2]
[408247988,1773312632371,-295.80018517,0.0001659,2]
[408247989,1773312632381,-151.0,0.0001659,2]
[408247990,1773312632390,-151.0,0.0001659,2]
[408247991,1773312632399,-151.0,0.0001659,2]
[408247992,1773312632408,-151.0,0.0001659,2]
[408247993,1773312632417,-151.0,0.0001659,2]
[408247994,1773312632427,-500.34430685,0.000166,2]
[408247995,1773312632436,-600.0,0.0001661,2]
[408247996,1773312632445,-300.0,0.0001661,2]
[408247997,1773312632455,-500.0,0.0001661,2]
[408247998,1773312632465,-5000.0,0.0001661,2]
[408247999,1773312632475,-285.29811206,0.0001661,2]
[408248000,1773312632484,-500.0,0.0001661,2]
[408248001,1773312632494,-195.18713969,0.0001661,2]
[408248002,1773312632504,-195.0,0.0001661,2]
[408248003,1773312632514,-195.0,0.0001661,2]
[408248004,1773312632524,-197.61017159,0.0001661,2]
[408248005,1773312632533,-600.0,0.0001661,2]
[408248006,1773312632542,-250.0,0.0001661,2]
[408248007,1773312632551,-2527.51373126,0.0001661,2]
[408248008,1773312632560,-500.0,0.0001661,2]
[408248009,1773312632570,-500.0,0.00016675,2]
[408248010,1773312632580,-600.0,0.00016681,2]
[408248011,1773312632589,-500.0,0.00016689,2]
[408248012,1773312632598,-500.42269265,0.00016689,2]
[408248013,1773312632608,-500.28721314,0.00016689,2]
[408248014,1773312632617,-500.0,0.00016689,2]
[408248015,1773312632627,-500.0,0.00016689,2]
[408248016,1773312632636,-500.0,0.00016689,2]
[408248017,1773312632649,-500.0,0.00016689,2]
[408248018,1773312632658,-500.0,0.00016689,2]
[408248019,1773312632668,-500.0,0.00016689,2]
[408248020,1773312632679,-500.37983606,0.00016689,2]
[408248021,1773312632688,-500.0,0.000167,2]
[408248022,1773312632697,-164.00773729,0.000167,2]
[408248023,1773312632706,-500.0,0.000167,2]
[408248024,1773312632716,-168.3299599,0.000167,2]
[408248025,1773312632726,-500.0,0.000167,2]
[408248026,1773312632735,-500.0,0.000167,2]
[408248027,1773312632745,-500.0,0.000167,2]
[408248028,1773312632754,-1000.0,0.00016712,2]
[408248029,1773312632764,-200.0,0.00016717,2]
[408248030,1773312632774,-601.43520465,0.00016717,2]
[408248031,1773312632784,-600.0,0.00016717,2]
[408248032,1773312632793,-300.0,0.00016717,2]
[408248033,1773312632802,-250.0,0.00016717,2]
[408248034,1773312632813,-300.0,0.00016717,2]
[408248035,1773312632824,-500.96706239,0.00016725,2]
[408248036,1773312632835,-166.66,0.00016737,2]
[408248037,1773312632845,-200.0,0.00016766,2]
[408248038,1773312632854,-1000.0,0.00016798,2]
[408248039,1773312632865,-500.0,0.00016884,2]
[408248040,1773312632875,-500.0,0.000169,2]
[408248041,1773312632884,-1999.0,0.00016986,2]
[408248042,1773312632893,-200.0,0.00017,2]
[408248043,1773312632904,-300.0,0.00017,2]
[408248044,1773312632913,-636.0,0.00017014,2]
[408248045,1773312632923,-166.66,0.00017076,2]
[408248046,1773312632932,-257.81,0.0001713,2]
[408248047,1773312632942,-500.0,0.00017158,2]
[408248048,1773312632952,-451.0,0.00017178,2]
[408248049,1773312632962,-1000.0,0.00017223,2]
[408248050,1773312632971,-1000.0,0.00017237,2]
[408248051,1773312632981,-1000.0,0.00017237,2]
[408248052,1773312632991,-500.0,0.00017237,2]
[408248053,1773312633000,-445.92650306,0.00017237,2]
[408248054,1773312633010,-1000.0,0.00017237,2]
[408248055,1773312633019,-500.0,0.00017237,2]
[408248056,1773312633029,-1000.0,0.00017237,2]
[408248057,1773312633038,-1000.0,0.00017248,2]
[408248058,1773312633047,-1000.0,0.00017248,2]
[408248059,1773312633056,-1000.0,0.00017248,2]
[408248060,1773312633065,-892.86053309,0.00017259,2]
[408248061,1773312633075,-166.66,0.00017414,2]
[408248062,1773312633084,-500.0,0.00017432,2]
[408248063,1773312633094,-10605.32048734,0.00017473,2]
[408248064,1773312633103,-504.2091639,0.00017473,2]
[408248065,1773312633113,-278.81,0.00017499,2]
[408248066,1773312633123,-29245.93393237,0.00017525,2]
[408248067,1773312633138,-20582.20216885,0.00017525,2]
[408248068,1773312633149,-18721.07057939,0.00017525,2]
[408248069,1773312633168,-699.16733347,0.00017525,2]
[408248075,1773312637768,-49080.58908473,0.00017525,2]
[408248076,1773312637827,-1340.56077991,0.00017525,2]
[408248103,1773312640125,-3622.07179517,0.00017525,2]
[408248104,1773312640135,-500.0,0.00017573,2]
[408248105,1773312640144,-500.51782073,0.00017573,2]
[408248106,1773312640153,-500.0,0.00017573,2]
[408248107,1773312640162,-874.1,0.00017573,2]
[408248108,1773312640172,-935.0,0.00017701,2]
[408248109,1773312640182,-1680.0,0.00017703,2]
[408248110,1773312640194,-500.0,0.00017706,2]
[408248111,1773312640203,-420.0,0.00017742,2]
[408248112,1773312640212,-420.0,0.00017742,2]
[408248113,1773312640221,-10605.32048726,0.00017743,2]
[408248114,1773312640230,-367.0,0.00017743,2]
[408248115,1773312640239,-200.0,0.00017744,2]
[408248116,1773312640248,-166.66,0.00017752,2]
[408248117,1773312640258,-201.0,0.00017759,2]
[408248118,1773312640267,-500.0,0.00017785,2]
[408248119,1773312640276,-782.33990359,0.00017796,2]
[408248120,1773312640286,-1503.02080856,0.00017796,2]
[408248121,1773312640297,-750.6932671,0.000178,2]
[408248122,1773312640305,-1678.37404879,0.000178,2]
[408248123,1773312640316,-1874.00593704,0.000178,2]
[408248124,1773312640326,-1953.03249593,0.000178,2]
[408248125,1773312640335,-375.3100428,0.00017825,2]
[408248126,1773312640344,-658.5,0.00017825,2]
[408248127,1773312640353,-500.0,0.00017826,2]
[408248128,1773312640362,-351.35782912,0.00017826,2]
[408248129,1773312640372,-423.57999828,0.00017826,2]